[Event "Chessity Nationale Pupillendag 2018 - Groep G"]
[Site "Meppel, Netherlands"]
[Date "2018.06.23"]
[Round "5.2"]
[White "Koorevaar, Sarah-Joy"]
[Black "Verwer, Oscar"]
[Result "1-0"]
[TimeControl "15 min + 10 sec"]
[WhiteElo "533"]
[BlackElo "833"]

1. e4 {[%clk 00:15:20]} {[%emt 00:10:42]} d5 {[%clk 00:15:18]} {[%emt
00:00:02]} 2. Nc3 {[%clk 00:15:26]} {[%emt 00:00:04]} d4 {[%clk 00:15:25]}
{[%emt 00:00:03]} 3. Nb1 {[%clk 00:15:26]} {[%emt 00:00:09]} e5 {[%clk
00:15:33]} {[%emt 00:00:03]} 4. Bc4 {[%clk 00:15:29]} {[%emt 00:00:06]} Nf6
{[%clk 00:15:39]} {[%emt 00:00:03]} 5. d3 {[%clk 00:15:31]} {[%emt 00:00:10]}
Nc6 {[%clk 00:15:47]} {[%emt 00:00:02]} 6. Nf3 {[%clk 00:15:31]} {[%emt
00:00:09]} Bg4 {[%clk 00:15:53]} {[%emt 00:00:04]} 7. h3 {[%clk 00:15:32]}
{[%emt 00:00:11]} Bh5 {[%clk 00:15:58]} {[%emt 00:00:04]} 8. g4 {[%clk
00:15:40]} {[%emt 00:00:02]} Bg6 {[%clk 00:16:02]} {[%emt 00:00:05]} 9. Ng5
{[%clk 00:15:39]} {[%emt 00:00:12]} Qd7 {[%clk 00:15:57]} {[%emt 00:00:14]} 10.
Nf3 {[%clk 00:15:12]} {[%emt 00:00:38]} Be7 {[%clk 00:15:59]} {[%emt 00:00:08]}
11. Bg5 {[%clk 00:15:11]} {[%emt 00:00:11]} O-O-O {[%clk 00:16:04]} {[%emt
00:00:05]} 12. Qd2 {[%clk 00:14:42]} {[%emt 00:00:39]} h6 {[%clk 00:16:07]}
{[%emt 00:00:06]} 13. Bxf6 {[%clk 00:14:48]} {[%emt 00:00:06]} Bxf6 {[%clk
00:16:12]} {[%emt 00:00:04]} 14. Bb5 {[%clk 00:14:43]} {[%emt 00:00:15]} Qd6
{[%clk 00:16:03]} {[%emt 00:00:19]} 15. Bxc6 {[%clk 00:14:19]} {[%emt
00:00:35]} Qxc6 {[%clk 00:16:07]} {[%emt 00:00:06]} 16. Qa5 {[%clk 00:14:25]}
{[%emt 00:00:04]} Kb8 {[%clk 00:16:05]} {[%emt 00:00:12]} 17. Na3 {[%clk
00:14:13]} {[%emt 00:00:23]} Be7 {[%clk 00:15:54]} {[%emt 00:00:19]} 18. Nxe5
{[%clk 00:14:11]} {[%emt 00:00:13]} Qe6 {[%clk 00:15:22]} {[%emt 00:00:39]} 19.
Qb5 {[%clk 00:13:59]} {[%emt 00:00:25]} f6 {[%clk 00:15:06]} {[%emt 00:00:25]}
20. Nec4 {[%clk 00:13:43]} {[%emt 00:00:24]} Rd5 {[%clk 00:14:56]} {[%emt
00:00:22]} 21. Qxd5 {[%clk 00:13:26]} {[%emt 00:00:28]} Qxd5 {[%clk 00:14:44]}
{[%emt 00:00:21]} 22. exd5 {[%clk 00:13:33]} {[%emt 00:00:02]} Bb4+ {[%clk
00:14:44]} {[%emt 00:00:11]} 23. Nd2 {[%clk 00:13:24]} {[%emt 00:00:18]} Re8+
{[%clk 00:14:51]} {[%emt 00:00:04]} 24. Kd1 {[%clk 00:13:22]} {[%emt 00:00:13]}
h5 {[%clk 00:14:44]} {[%emt 00:00:17]} 25. Nb3 {[%clk 00:13:07]} {[%emt
00:00:25]} hxg4 {[%clk 00:14:42]} {[%emt 00:00:10]} 26. hxg4 {[%clk 00:13:16]}
{[%emt 00:00:02]} Bh7 {[%clk 00:13:49]} {[%emt 00:01:03]} 27. Nb5 {[%clk
00:12:41]} {[%emt 00:00:46]} f5 {[%clk 00:12:54]} {[%emt 00:01:04]} 28. a3
{[%clk 00:12:35]} {[%emt 00:00:17]} Bf8 {[%clk 00:12:44]} {[%emt 00:00:20]} 29.
Rxh7 {[%clk 00:12:07]} {[%emt 00:00:38]} c6 {[%clk 00:12:28]} {[%emt 00:00:26]}
30. dxc6 {[%clk 00:11:51]} {[%emt 00:00:25]} bxc6 {[%clk 00:12:35]} {[%emt
00:00:04]} 31. N5xd4 {[%clk 00:11:53]} {[%emt 00:00:09]} c5 {[%clk 00:12:16]}
{[%emt 00:00:28]} 32. Nc6+ {[%clk 00:12:00]} {[%emt 00:00:04]} Kb7 {[%clk
00:12:24]} {[%emt 00:00:02]} 33. Nba5+ {[%clk 00:11:57]} {[%emt 00:00:13]} Kb6
{[%clk 00:12:29]} {[%emt 00:00:05]} 34. Kd2 {[%clk 00:11:28]} {[%emt 00:00:39]}
Kb5 {[%clk 00:12:02]} {[%emt 00:00:37]} 35. Rh8 {[%clk 00:11:28]} {[%emt
00:00:10]} Rc8 {[%clk 00:11:53]} {[%emt 00:00:18]} 36. Ne7 {[%clk 00:11:11]}
{[%emt 00:00:27]} Rb8 {[%clk 00:11:38]} {[%emt 00:00:24]} 37. Nc4 {[%clk
00:11:09]} {[%emt 00:00:13]} Bxe7 {[%clk 00:10:56]} {[%emt 00:00:53]} 38. Rxb8+
{[%clk 00:11:15]} {[%emt 00:00:04]} Kc6 {[%clk 00:11:03]} {[%emt 00:00:02]} 39.
Rc8+ {[%clk 00:11:10]} {[%emt 00:00:15]} Kb5 {[%clk 00:11:09]} {[%emt
00:00:04]} 40. Re1 {[%clk 00:11:17]} {[%emt 00:00:04]} Bg5+ {[%clk 00:11:15]}
{[%emt 00:00:03]} 41. Ne3 {[%clk 00:11:16]} {[%emt 00:00:11]} f4 {[%clk
00:11:01]} {[%emt 00:00:25]} 42. Nf5 {[%clk 00:11:00]} {[%emt 00:00:26]} f3+
{[%clk 00:11:07]} {[%emt 00:00:04]} 43. Ne3 {[%clk 00:11:06]} {[%emt 00:00:04]}
Bxe3+ {[%clk 00:11:15]} {[%emt 00:00:02]} 44. Rxe3 {[%clk 00:11:13]} {[%emt
00:00:03]} g5 {[%clk 00:11:19]} {[%emt 00:00:06]} 45. Re5 {[%clk 00:11:13]}
{[%emt 00:00:11]} Kb6 {[%clk 00:11:24]} {[%emt 00:00:05]} 46. Rexc5 {[%clk
00:11:06]} {[%emt 00:00:17]} Kb7 {[%clk 00:11:27]} {[%emt 00:00:05]} 47. d4
{[%clk 00:11:13]} {[%emt 00:00:05]} Kb6 {[%clk 00:11:34]} {[%emt 00:00:03]} 48.
d5 {[%clk 00:11:21]} {[%emt 00:00:03]} a5 {[%clk 00:11:42]} {[%emt 00:00:01]}
49. d6 {[%clk 00:11:27]} {[%emt 00:00:04]} a4 {[%clk 00:11:51]} {[%emt
00:00:02]} 50. d7 {[%clk 00:11:35]} {[%emt 00:00:03]} Ka6 {[%clk 00:11:58]}
{[%emt 00:00:02]} 51. d8=Q {[%clk 00:11:33]} {[%emt 00:00:13]} Ka7 {[%clk
00:11:52]} {[%emt 00:00:13]} 52. Qa5+ {[%clk 00:11:41]} {[%emt 00:00:04]} Kb7
{[%clk 00:12:00]} {[%emt 00:00:02]} 53. Qc7+ {[%clk 00:11:46]} {[%emt
00:00:04]} Ka6 {[%clk 00:12:06]} {[%emt 00:00:05]} 54. Ra8# {[%clk 00:11:46]}
{[%emt 00:00:09]} 1-0

[Event "Chessity Nationale Pupillendag 2018 - Groep G"]
[Site "Meppel, Netherlands"]
[Date "2018.06.23"]
[Round "5.3"]
[White "Van Rijn, Vincent"]
[Black "Heukelom, Aurelia"]
[Result "1-0"]
[TimeControl "15 min + 10 sec"]
[WhiteElo "699"]
[BlackElo "703"]

1. d4 {[%emt 00:00:04]} d5 2. c4 {[%emt 00:00:04]} e6 {[%clk 00:15:24]} {[%emt
00:00:05]} 3. Nc3 {[%clk 00:15:32]} {[%emt 00:00:03]} Nf6 {[%clk 00:15:29]}
{[%emt 00:00:04]} 4. Nf3 {[%clk 00:15:42]} Be7 {[%clk 00:15:33]} {[%emt
00:00:06]} 5. g3 {[%clk 00:15:50]} {[%emt 00:00:02]} O-O {[%emt 00:00:02]} 6.
Bg2 {[%emt 00:00:02]} b6 {[%clk 00:15:47]} {[%emt 00:00:03]} 7. O-O {[%clk
00:16:08]} {[%emt 00:00:02]} Bb7 {[%clk 00:15:51]} {[%emt 00:00:06]} 8. cxd5
{[%clk 00:15:46]} {[%emt 00:00:31]} Bxd5 {[%clk 00:15:56]} {[%emt 00:00:05]} 9.
Nxd5 {[%clk 00:15:54]} {[%emt 00:00:03]} exd5 {[%clk 00:16:05]} 10. Bg5 {[%clk
00:15:35]} {[%emt 00:00:28]} Ne4 {[%clk 00:16:01]} {[%emt 00:00:13]} 11. Bxe7
{[%clk 00:15:38]} {[%emt 00:00:10]} Qxe7 {[%clk 00:16:08]} {[%emt 00:00:03]} 12.
Qd3 {[%clk 00:15:29]} {[%emt 00:00:19]} Nc6 {[%clk 00:15:58]} {[%emt 00:00:20]}
13. Rac1 {[%clk 00:15:26]} {[%emt 00:00:13]} Nb4 {[%clk 00:15:58]} {[%emt
00:00:10]} 14. Qb3 {[%clk 00:15:15]} {[%emt 00:00:19]} a5 {[%clk 00:15:52]}
{[%emt 00:00:17]} 15. a3 {[%clk 00:15:24]} {[%emt 00:00:02]} Na6 {[%clk
00:15:57]} {[%emt 00:00:06]} 16. Qb5 {[%clk 00:15:16]} {[%emt 00:00:08]} Nd6
{[%clk 00:16:05]} {[%emt 00:00:12]} 17. Qc6 {[%clk 00:15:19]} {[%emt 00:00:07]}
Rac8 {[%clk 00:15:32]} {[%emt 00:00:40]} 18. Qxd5 {[%clk 00:15:17]} {[%emt
00:00:15]} Qe4 {[%clk 00:15:22]} {[%emt 00:00:20]} 19. Qxe4 {[%clk 00:15:18]}
{[%emt 00:00:08]} Nxe4 {[%clk 00:15:29]} {[%emt 00:00:04]} 20. Ne5 {[%clk
00:15:14]} {[%emt 00:00:13]} Nd2 {[%clk 00:15:27]} {[%emt 00:00:13]} 21. Rfd1
{[%clk 00:15:20]} {[%emt 00:00:03]} Nb3 {[%clk 00:15:33]} {[%emt 00:00:04]} 22.
Rc3 {[%clk 00:15:21]} {[%emt 00:00:10]} a4 {[%clk 00:15:41]} {[%emt 00:00:03]}
23. Nd7 {[%clk 00:15:06]} {[%emt 00:00:24]} Rfd8 {[%clk 00:15:44]} {[%emt
00:00:07]} 24. Bb7 {[%clk 00:15:07]} {[%emt 00:00:09]} Rb8 {[%clk 00:15:32]}
{[%emt 00:00:22]} 25. Nxb8 {[%clk 00:15:14]} {[%emt 00:00:02]} Rxb8 {[%clk
00:15:41]} {[%emt 00:00:02]} 26. Bxa6 {[%clk 00:15:19]} {[%emt 00:00:05]} Re8
{[%clk 00:15:34]} {[%emt 00:00:16]} 27. Bb5 {[%emt 00:00:19]} Rd8 {[%clk
00:15:29]} {[%emt 00:00:12]} 28. Bxa4 {[%clk 00:15:14]} {[%emt 00:00:10]} Nxd4
{[%clk 00:15:29]} {[%emt 00:00:10]} 29. Rcd3 {[%clk 00:14:45]} {[%emt
00:00:40]} Nxe2+ {[%clk 00:15:25]} {[%emt 00:00:14]} 30. Kf1 {[%clk 00:14:47]}
{[%emt 00:00:06]} Rxd3 {[%clk 00:15:33]} {[%emt 00:00:04]} 31. Rxd3 {[%clk
00:14:55]} {[%emt 00:00:03]} g6 {[%clk 00:15:34]} {[%emt 00:00:09]} 32. Kxe2
{[%clk 00:15:04]} Kg7 {[%clk 00:15:39]} {[%emt 00:00:04]} 33. Ke3 {[%clk
00:15:11]} {[%emt 00:00:03]} c5 {[%clk 00:15:43]} {[%emt 00:00:06]} 34. Rd6
{[%clk 00:15:10]} {[%emt 00:00:12]} c4 {[%clk 00:15:42]} {[%emt 00:00:07]} 35.
Rxb6 {[%clk 00:15:18]} {[%emt 00:00:06]} c3 {[%clk 00:15:49]} {[%emt 00:00:02]}
36. bxc3 {[%clk 00:15:28]} h5 {[%clk 00:15:52]} {[%emt 00:00:06]} 37. c4 {[%clk
00:15:37]} {[%emt 00:00:01]} g5 {[%clk 00:16:00]} {[%emt 00:00:02]} 38. c5
{[%clk 00:15:46]} Kf8 {[%clk 00:16:05]} {[%emt 00:00:05]} 39. c6 {[%clk
00:15:55]} {[%emt 00:00:02]} Ke8 {[%clk 00:16:14]} 40. c7+ {[%clk 00:16:02]}
{[%emt 00:00:03]} Ke7 {[%clk 00:16:09]} {[%emt 00:00:13]} 41. c8=Q {[%emt
00:00:06]} g4 {[%clk 00:16:11]} {[%emt 00:00:06]} 42. Qd7+ {[%clk 00:16:12]}
{[%emt 00:00:07]} Kf8 {[%clk 00:16:16]} {[%emt 00:00:05]} 43. Rb8+ {[%clk
00:16:21]} Kg7 {[%clk 00:16:24]} {[%emt 00:00:06]} 44. Rb7 {[%clk 00:16:25]}
{[%emt 00:00:06]} Kg6 {[%clk 00:16:29]} {[%emt 00:00:05]} 45. Qxf7+ {[%clk
00:16:33]} {[%emt 00:00:03]} Kg5 {[%clk 00:16:38]} 46. Rb5+ {[%clk 00:16:36]}
{[%emt 00:00:05]} Kh6 {[%clk 00:16:45]} {[%emt 00:00:05]} 47. Qxh5 {[%clk
00:16:36]} {[%emt 00:00:10]} Kg7 {[%clk 00:16:53]} {[%emt 00:00:02]} 48. Rb6
{[%clk 00:16:38]} {[%emt 00:00:09]} Kg8 {[%clk 00:16:55]} {[%emt 00:00:07]} 49.
Rb7 {[%clk 00:16:40]} {[%emt 00:00:07]} Kf8 {[%clk 00:17:00]} {[%emt 00:00:04]}
50. Qe8# {[%emt 00:00:09]} 1-0

[Event "Chessity Nationale Pupillendag 2018 - Groep G"]
[Site "Meppel, Netherlands"]
[Date "2018.06.23"]
[Round "5.4"]
[White "Gelten, Evan"]
[Black "Blom, Odette"]
[Result "1-0"]
[TimeControl "15 min + 10 sec"]
[WhiteElo "757"]
[BlackElo "305"]

1. e4 {[%clk 00:15:17]} e5 {[%clk 00:15:17]} 2. Nf3 {[%clk 00:15:17]} Nc6
{[%clk 00:15:24]} {[%emt 00:00:59]} 3. Bc4 {[%clk 00:15:24]} {[%emt 00:00:07]}
Nf6 {[%clk 00:15:22]} {[%emt 00:00:11]} 4. Ng5 {[%emt 00:00:38]} Qe7 {[%clk
00:14:47]} {[%emt 00:00:14]} 5. Nxf7 {[%clk 00:15:10]} Rg8 {[%clk 00:14:42]} 6.
Ng5 {[%clk 00:15:10]} Rh8 {[%clk 00:14:42]} 7. Nc3 {[%clk 00:15:07]} {[%emt
00:00:52]} d6 {[%clk 00:14:47]} {[%emt 00:00:11]} 8. d3 {[%clk 00:15:08]} Bg4
{[%clk 00:14:45]} {[%emt 00:00:19]} 9. f3 {[%clk 00:15:11]} Bd7 {[%clk
00:14:43]} {[%emt 00:00:20]} 10. Nh3 {[%emt 00:00:17]} Nd4 {[%clk 00:14:29]}
{[%emt 00:00:06]} 11. Be3 {[%emt 00:00:51]} Bxh3 {[%clk 00:13:52]} {[%emt
00:00:05]} 12. gxh3 {[%emt 00:00:31]} Nh5 {[%clk 00:13:23]} {[%emt 00:00:10]}
13. Bxd4 {[%emt 00:00:13]} exd4 {[%emt 00:00:05]} 14. Nd5 {[%emt 00:00:21]}
Qh4+ {[%clk 00:13:10]} {[%emt 00:00:10]} 15. Ke2 {[%clk 00:15:47]} {[%emt
00:00:38]} Qxh3 16. Qf1 {[%emt 00:00:21]} Qxf1+ {[%clk 00:12:37]} {[%emt
00:00:01]} 17. Rhxf1 {[%emt 00:00:20]} c6 {[%clk 00:12:28]} {[%emt 00:00:03]}
18. Nc7+ {[%clk 00:16:11]} {[%emt 00:00:12]} Kd8 {[%emt 00:00:15]} 19. Nxa8
{[%emt 00:00:02]} Kc8 {[%emt 00:00:16]} 20. Be6+ {[%clk 00:16:10]} {[%emt
00:00:03]} Kb8 {[%clk 00:12:00]} {[%emt 00:00:24]} 21. Bg4 {[%emt 00:00:10]}
Nf6 {[%emt 00:00:21]} 22. c3 {[%emt 00:00:09]} dxc3 {[%clk 00:11:57]} {[%emt
00:00:05]} 23. bxc3 {[%clk 00:15:55]} {[%emt 00:00:03]} Nxg4 {[%clk 00:12:03]}
{[%emt 00:00:04]} 24. fxg4 {[%clk 00:16:04]} Kxa8 {[%clk 00:12:00]} {[%emt
00:00:14]} 25. Rf2 {[%clk 00:16:10]} {[%emt 00:00:03]} g6 {[%clk 00:11:53]}
{[%emt 00:00:20]} 26. Raf1 {[%emt 00:00:07]} a6 {[%emt 00:00:07]} 27. Rxf8+
{[%emt 00:00:06]} Rxf8 28. Rxf8+ {[%emt 00:00:10]} Ka7 {[%clk 00:11:58]} {[%emt
00:00:03]} 29. Kd2 {[%emt 00:00:36]} b6 {[%emt 00:00:11]} 30. Rf7+ {[%emt
00:00:05]} Kb8 {[%emt 00:00:03]} 31. Kc2 {[%emt 00:00:27]} b5 {[%emt 00:00:05]}
32. Kb3 {[%emt 00:00:14]} c5 33. c4 {[%emt 00:00:03]} bxc4+ {[%emt 00:00:07]}
34. dxc4 {[%clk 00:14:35]} {[%emt 00:00:03]} a5 {[%clk 00:11:29]} {[%emt
00:00:31]} 35. Ka4 {[%clk 00:14:20]} {[%emt 00:00:02]} g5 {[%clk 00:11:35]}
{[%emt 00:00:27]} 36. Kxa5 {[%clk 00:14:26]} {[%emt 00:00:04]} h6 {[%clk
00:11:39]} {[%emt 00:00:06]} 37. Kb6 {[%clk 00:14:33]} {[%emt 00:00:03]} Kc8
{[%clk 00:11:45]} {[%emt 00:00:05]} 38. Kc6 {[%clk 00:14:40]} {[%emt 00:00:03]}
Kd8 {[%clk 00:11:52]} {[%emt 00:00:02]} 39. Kxd6 {[%clk 00:14:48]} {[%emt
00:00:03]} Ke8 {[%clk 00:12:00]} {[%emt 00:00:02]} 40. Ke6 {[%clk 00:14:57]}
{[%emt 00:00:02]} Kd8 {[%clk 00:12:05]} {[%emt 00:00:04]} 41. Rh7 {[%clk
00:15:05]} h5 {[%clk 00:12:10]} {[%emt 00:00:05]} 42. gxh5 {[%clk 00:15:14]}
{[%emt 00:00:02]} g4 {[%clk 00:12:09]} {[%emt 00:00:11]} 43. a3 {[%clk
00:15:18]} {[%emt 00:00:07]} Kc8 {[%clk 00:12:14]} {[%emt 00:00:03]} 44. Kd6
{[%emt 00:00:03]} Kb8 {[%emt 00:00:03]} 45. Kc6 {[%emt 00:00:06]} Kc8 {[%emt
00:00:07]} 46. Rh8# {[%emt 00:00:03]} 1-0

[Event "Chessity Nationale Pupillendag 2018 - Groep G"]
[Site "Meppel, Netherlands"]
[Date "2018.06.23"]
[Round "6.1"]
[White "Van Rijn, Vincent"]
[Black "Aubel, Daan"]
[Result "0-1"]
[TimeControl "15 min + 10 sec"]
[WhiteElo "699"]
[BlackElo "833"]

1. d4 {[%emt 00:00:04]} Nf6 {[%clk 00:15:18]} 2. Nc3 {[%clk 00:15:27]} {[%emt
00:00:03]} d5 {[%clk 00:15:25]} {[%emt 00:00:02]} 3. Nf3 {[%clk 00:15:31]}
{[%emt 00:00:06]} Bg4 {[%clk 00:15:33]} {[%emt 00:00:03]} 4. b3 {[%clk
00:15:38]} {[%emt 00:00:04]} Nc6 {[%clk 00:15:40]} {[%emt 00:00:03]} 5. Bb2
{[%clk 00:15:44]} {[%emt 00:00:03]} e6 {[%clk 00:15:48]} {[%emt 00:00:02]} 6.
Qd3 {[%clk 00:15:45]} {[%emt 00:00:10]} Nb4 {[%clk 00:15:39]} {[%emt 00:00:18]}
7. Qb5+ {[%clk 00:15:52]} {[%emt 00:00:03]} c6 {[%clk 00:15:39]} {[%emt
00:00:11]} 8. Qxb7 {[%clk 00:15:53]} {[%emt 00:00:09]} Nxc2+ {[%clk 00:15:43]}
{[%emt 00:00:06]} 9. Kd2 {[%clk 00:15:53]} {[%emt 00:00:09]} Nxa1 10. Bxa1 Qc8
{[%clk 00:15:50]} {[%emt 00:00:02]} 11. Qxc8+ {[%clk 00:15:52]} {[%emt
00:00:21]} Rxc8 {[%clk 00:15:58]} {[%emt 00:00:03]} 12. e3 {[%clk 00:15:56]}
{[%emt 00:00:05]} Bxf3 {[%clk 00:16:05]} {[%emt 00:00:03]} 13. gxf3 {[%clk
00:16:02]} {[%emt 00:00:02]} Bb4 {[%clk 00:16:12]} {[%emt 00:00:05]} 14. Ba6
{[%clk 00:16:09]} {[%emt 00:00:04]} Rc7 {[%clk 00:16:13]} {[%emt 00:00:09]} 15.
Kc2 {[%clk 00:16:14]} {[%emt 00:00:03]} Bxc3 {[%clk 00:16:21]} {[%emt
00:00:03]} 16. Bxc3 {[%clk 00:16:23]} O-O {[%clk 00:16:28]} {[%emt 00:00:04]}
17. Bd3 {[%clk 00:16:31]} {[%emt 00:00:02]} Rfc8 {[%clk 00:16:34]} {[%emt
00:00:05]} 18. Rg1 {[%clk 00:16:35]} {[%emt 00:00:05]} c5 {[%clk 00:16:42]}
{[%emt 00:00:03]} 19. Kb2 {[%clk 00:16:16]} {[%emt 00:00:29]} c4 {[%clk
00:16:38]} {[%emt 00:00:13]} 20. bxc4 {[%clk 00:16:21]} {[%emt 00:00:04]} dxc4
{[%clk 00:16:46]} {[%emt 00:00:03]} 21. Bc2 {[%clk 00:16:18]} {[%emt 00:00:13]}
Rb8+ {[%clk 00:16:50]} {[%emt 00:00:06]} 22. Kc1 {[%clk 00:16:27]} Rcb7 {[%clk
00:16:54]} {[%emt 00:00:06]} 23. Kd2 {[%clk 00:16:35]} {[%emt 00:00:02]} Kf8
{[%clk 00:17:00]} {[%emt 00:00:05]} 24. e4 {[%emt 00:00:29]} g6 {[%clk
00:17:02]} {[%emt 00:00:05]} 25. e5 {[%clk 00:16:25]} {[%emt 00:00:03]} Nd5
{[%clk 00:17:09]} {[%emt 00:00:03]} 26. Ba1 {[%clk 00:16:11]} {[%emt 00:00:24]}
Rc7 {[%clk 00:17:11]} {[%emt 00:00:09]} 27. Be4 {[%clk 00:16:09]} {[%emt
00:00:09]} c3+ {[%emt 00:00:51]} 28. Kd1 {[%clk 00:15:29]} {[%emt 00:00:05]}
Nb4 {[%clk 00:17:17]} {[%emt 00:00:11]} 29. Rg2 {[%clk 00:15:16]} {[%emt
00:00:20]} c2+ {[%clk 00:17:25]} {[%emt 00:00:04]} 30. Bxc2 {[%clk 00:15:00]}
{[%emt 00:00:25]} Nxc2 {[%clk 00:17:30]} {[%emt 00:00:07]} 31. Kd2 {[%clk
00:15:05]} {[%emt 00:00:04]} Nxa1 {[%clk 00:17:38]} {[%emt 00:00:03]} 32. Rg1
{[%clk 00:15:08]} {[%emt 00:00:07]} Rb2+ {[%clk 00:17:37]} {[%emt 00:00:11]} 33.
Kd3 {[%clk 00:15:14]} {[%emt 00:00:04]} Rxa2 {[%clk 00:17:45]} {[%emt
00:00:02]} 34. Ke4 {[%clk 00:15:20]} {[%emt 00:00:03]} Rxf2 {[%clk 00:17:51]}
{[%emt 00:00:04]} 35. Ke3 {[%clk 00:15:28]} {[%emt 00:00:02]} Ra2 {[%clk
00:17:57]} {[%emt 00:00:04]} 36. Kd3 {[%clk 00:15:36]} {[%emt 00:00:02]} Ke7
{[%clk 00:18:04]} {[%emt 00:00:03]} 37. Ke4 {[%clk 00:15:45]} f6 {[%clk
00:18:12]} {[%emt 00:00:03]} 38. Kd3 {[%clk 00:15:53]} fxe5 {[%clk 00:18:20]}
{[%emt 00:00:03]} 39. dxe5 {[%emt 00:00:04]} Rd7+ {[%clk 00:18:23]} {[%emt
00:00:04]} 40. Kc4 {[%clk 00:16:10]} Rd5 {[%clk 00:18:26]} {[%emt 00:00:08]} 41.
Kc3 {[%clk 00:16:17]} {[%emt 00:00:03]} Rxe5 {[%clk 00:18:34]} {[%emt
00:00:03]} 42. Rb1 {[%clk 00:16:21]} {[%emt 00:00:04]} Re3+ {[%clk 00:18:37]}
{[%emt 00:00:08]} 43. Kc4 {[%clk 00:16:30]} {[%emt 00:00:01]} Nc2 {[%clk
00:18:39]} {[%emt 00:00:09]} 44. Rb7+ {[%clk 00:16:35]} {[%emt 00:00:05]} Kf6
{[%clk 00:18:47]} {[%emt 00:00:02]} 45. Rd7 {[%clk 00:16:34]} {[%emt 00:00:09]}
Na3+ {[%clk 00:18:51]} {[%emt 00:00:08]} 46. Kb4 {[%clk 00:16:41]} {[%emt
00:00:01]} Rxf3 {[%clk 00:18:55]} {[%emt 00:00:07]} 47. Rxh7 {[%clk 00:16:47]}
{[%emt 00:00:04]} Nc2+ {[%clk 00:18:59]} {[%emt 00:00:07]} 48. Kc4 {[%clk
00:16:52]} {[%emt 00:00:04]} Ra4+ {[%clk 00:19:07]} {[%emt 00:00:02]} 49. Kb5
{[%clk 00:17:00]} {[%emt 00:00:03]} Rff4 {[%clk 00:19:14]} {[%emt 00:00:03]} 50.
Rh3 {[%clk 00:17:01]} {[%emt 00:00:05]} Rae4 {[%clk 00:19:21]} {[%emt
00:00:07]} 51. Rc3 {[%clk 00:17:04]} {[%emt 00:00:07]} Rf5+ {[%clk 00:19:24]}
{[%emt 00:00:07]} 52. Rc5 {[%clk 00:17:13]} {[%emt 00:00:01]} Na3+ {[%clk
00:19:31]} {[%emt 00:00:03]} 53. Kc6 {[%clk 00:17:20]} {[%emt 00:00:02]} Rxc5+
{[%clk 00:19:24]} {[%emt 00:00:17]} 54. Kxc5 {[%clk 00:17:28]} {[%emt
00:00:02]} Ke5 {[%clk 00:19:32]} {[%emt 00:00:02]} 55. Kc6 {[%clk 00:17:35]}
{[%emt 00:00:01]} Rc4+ {[%clk 00:19:41]} {[%emt 00:00:04]} 56. Kd7 {[%clk
00:17:45]} Nb5 {[%clk 00:19:44]} {[%emt 00:00:07]} 57. h3 {[%clk 00:17:48]}
{[%emt 00:00:07]} Rc7+ {[%clk 00:19:51]} {[%emt 00:00:03]} 58. Kd8 {[%clk
00:17:57]} Kd6 {[%clk 00:19:57]} {[%emt 00:00:03]} 59. Ke8 {[%clk 00:18:05]}
{[%emt 00:00:02]} Nd4 {[%clk 00:19:52]} {[%emt 00:00:15]} 60. Kd8 {[%clk
00:18:10]} {[%emt 00:00:05]} Nf5 {[%clk 00:19:57]} {[%emt 00:00:04]} 61. Ke8
{[%clk 00:18:16]} {[%emt 00:00:04]} Nh6 {[%clk 00:20:01]} {[%emt 00:00:05]} 62.
Kd8 {[%clk 00:18:24]} {[%emt 00:00:02]} a6 {[%clk 00:20:10]} {[%emt 00:00:03]}
63. Ke8 {[%clk 00:18:32]} {[%emt 00:00:02]} Rc8# {[%emt 00:00:02]} 0-1

[Event "Chessity Nationale Pupillendag 2018 - Groep G"]
[Site "Meppel, Netherlands"]
[Date "2018.06.23"]
[Round "6.2"]
[White "Koorevaar, Sarah-Joy"]
[Black "Gelten, Evan"]
[Result "1-0"]
[TimeControl "15 min + 10 sec"]
[WhiteElo "533"]
[BlackElo "757"]

1. e4 {[%clk 00:15:20]} {[%emt 00:04:02]} e5 {[%clk 00:15:18]} {[%emt
00:00:02]} 2. Nf3 {[%clk 00:15:28]} {[%emt 00:00:02]} Nc6 {[%clk 00:15:25]}
{[%emt 00:00:03]} 3. Bc4 {[%clk 00:15:36]} {[%emt 00:00:02]} Bc5 {[%clk
00:15:32]} {[%emt 00:00:03]} 4. d3 {[%clk 00:15:44]} {[%emt 00:00:02]} Nf6
{[%clk 00:15:40]} {[%emt 00:00:02]} 5. Nc3 {[%clk 00:15:52]} {[%emt 00:00:03]}
d6 {[%clk 00:15:46]} {[%emt 00:00:02]} 6. Bg5 {[%clk 00:15:56]} {[%emt
00:00:06]} h6 {[%clk 00:15:53]} {[%emt 00:00:04]} 7. Bxf6 {[%emt 00:00:24]} Bg4
{[%clk 00:15:53]} {[%emt 00:00:06]} 8. Bxd8 {[%clk 00:16:14]} {[%emt 00:00:02]}
Rxd8 {[%emt 00:00:02]} 9. O-O {[%emt 00:00:03]} Nd4 {[%clk 00:15:57]} {[%emt
00:00:01]} 10. Re1 {[%clk 00:15:46]} {[%emt 00:00:38]} O-O {[%clk 00:16:01]}
{[%emt 00:00:05]} 11. Nd5 {[%clk 00:15:38]} {[%emt 00:00:18]} c6 {[%clk
00:16:08]} {[%emt 00:00:04]} 12. Ne7+ {[%clk 00:15:45]} {[%emt 00:00:03]} Kh8
{[%clk 00:16:16]} {[%emt 00:00:02]} 13. Qd2 {[%clk 00:15:09]} {[%emt 00:00:46]}
Bxf3 {[%clk 00:16:25]} {[%emt 00:00:02]} 14. c3 {[%clk 00:14:37]} {[%emt
00:00:42]} Nb5 {[%clk 00:16:20]} {[%emt 00:00:14]} 15. Bxb5 {[%clk 00:14:39]}
{[%emt 00:00:08]} cxb5 {[%clk 00:16:29]} {[%emt 00:00:01]} 16. c4 {[%clk
00:14:37]} {[%emt 00:00:12]} Bg4 {[%clk 00:16:32]} {[%emt 00:00:06]} 17. cxb5
{[%clk 00:14:38]} {[%emt 00:00:10]} Rde8 {[%clk 00:16:39]} {[%emt 00:00:03]} 18.
Nf5 {[%clk 00:14:42]} {[%emt 00:00:06]} Bxf5 {[%clk 00:16:46]} {[%emt
00:00:04]} 19. exf5 {[%clk 00:14:49]} {[%emt 00:00:03]} Bd4 {[%clk 00:16:54]}
{[%emt 00:00:02]} 20. f6 {[%clk 00:14:40]} {[%emt 00:00:19]} gxf6 {[%clk
00:16:53]} {[%emt 00:00:12]} 21. Qxh6 {[%clk 00:14:46]} {[%emt 00:00:03]} Kg8
{[%clk 00:17:02]} 22. Re4 {[%clk 00:14:43]} {[%emt 00:00:13]} f5 {[%clk
00:17:10]} {[%emt 00:00:04]} 23. Rh4 {[%clk 00:14:47]} {[%emt 00:00:05]} 1-0